bitfinex/quotes_SOLUSD_20241009
["timestamp","ask_amount","ask_price","bid_price","bid_amount"]
[1728504002313,7.0856,141.13,141.09,22.6737]
[1728504002314,7.0861,141.12,141.09,7.0875]
[1728504002497,7.0869,141.11,141.08,70.0]
[1728504002742,7.0869,141.11,141.08,77.34342058]
[1728504003013,1.77161306,141.14,141.08,77.34342058]
[1728504003014,7.0862,141.12,141.09,1.41729045]
[1728504003312,7.0862,141.12,141.08,70.0]
[1728504003489,7.0872,141.1,141.08,70.0]
[1728504003999,17.7147,141.13,141.04,25.58719776]
[1728504004216,7.0886,141.08,141.04,17.7247]
[1728504004505,16.5931,141.1,141.04,5.23873602]
[1728504004506,7.0887,141.07,141.04,5.23873602]
[1728504004812,7.0895,141.06,141.04,5.23873602]
[1728504004995,8.85996999,141.09,141.05,1.41778594]
[1728504005181,16.5931,141.1,141.06,17.7225]
[1728504005379,16.6524,141.14,141.07,71.41753491]
[1728504005696,1.7716315,141.13,141.08,17.7194]
[1728504005888,7.0866,141.11,141.08,17.7194]
[1728504006404,7.0866,141.11,141.04,15.8408]
[1728504006405,7.0877,141.09,141.05,87.7239]
[1728504006587,1.7720098,141.08,141.03,70.0]
[1728504006794,16.6524,141.14,141.03,87.7255]
[1728504006795,7.0879,141.09,141.03,87.7255]
[1728504006987,39.48651669,141.13,141.01,8.57489299]
[1728504006988,20.0,141.12,141.08,7.0877]
[1728504007195,1.77221669,141.13,141.07,7.0886]
[1728504007196,7.0866,141.11,141.07,7.0886]
[1728504007512,7.0867,141.11,141.07,7.0886]
[1728504007891,7.0867,141.11,141.08,1.4174091]
[1728504008106,7.0867,141.11,141.08,23.902374]
[1728504008498,7.0872,141.1,141.06,17.84769]
[1728504008811,7.0872,141.1,141.07,23.902374]
[1728504009289,7.0878,141.09,141.07,0.12549]
[1728504009610,7.0878,141.09,141.06,23.902374]
[1728504009816,19.48681669,141.13,141.06,0.12549]
[1728504010107,7.0878,141.09,141.05,24.8132]
[1728504010295,19.48681669,141.13,141.06,7.0887]
[1728504010296,7.087,141.11,141.06,7.0887]
[1728504010602,7.0883,141.08,141.03,16.13039335]
[1728504010912,7.0883,141.08,141.04,1.41771486]
[1728504011402,1.77209668,141.1,141.04,1.41771486]
[1728504011612,7.088,141.09,141.04,30.992074]
[1728504011788,1.77216991,141.09,141.04,0.12549]
[1728504012116,8.86026991,141.09,141.05,7.0892]
[1728504012291,7.0882,141.08,141.04,24.94029]
[1728504012492,7.0882,141.08,141.05,1.41771591]
[1728504012700,20.0,141.13,141.05,1.41771591]
[1728504012936,7.0878,141.09,141.05,1.41771591]
[1728504013415,1.77212876,141.08,141.04,17.85019]
[1728504013588,1.77215696,141.1,141.04,17.85019]
[1728504013788,8.85955696,141.1,141.06,7.0891]
[1728504013989,7.0879,141.09,141.05,8.50725522]
[1728504014201,7.0882,141.08,141.04,24.93999]
[1728504014698,7.0888,141.07,141.04,17.85019]
[1728504014904,1.77215696,141.1,141.04,0.12549]
[1728504015092,7.0893,141.06,141.03,23.902374]
[1728504015415,7.0893,141.06,141.03,23.776884]
[1728504016009,1.77230704,141.09,141.03,23.776884]
[1728504016205,7.0897,141.05,141.01,24.8199]
[1728504017089,1.77252671,141.04,141.0,70.0]
[1728504017409,21.77266618,141.07,140.98,70.0]
[1728504017607,7.0907,141.03,140.99,7.0923]
[1728504017803,8.86429804,141.02,140.98,77.093]
[1728504017989,7.0916,141.02,140.98,7.093]
[1728504018197,1.77298398,141.01,140.94,71.23298972]
[1728504018395,7.0927,140.99,140.95,7.0945]
[1728504018795,1.77322414,141.03,140.95,7.0945]
[1728504019002,1.7732234,141.04,140.98,70.0]
[1728504019200,20.0,141.07,141.03,7.0902]
[1728504019201,1.77275448,141.06,141.03,7.0902]
[1728504019603,7.0905,141.04,141.0,77.0917]
[1728504019810,7.0898,141.05,141.0,77.0917]
[1728504021103,1.77240828,141.07,141.03,24.8168]
[1728504021703,8.86100828,141.07,141.03,24.8168]
[1728504022918,1.77240828,141.07,141.03,17.7263]
[1728504023105,7.0892,141.06,141.02,7.091]
[1728504023309,7.0901,141.04,141.0,24.8215]
[1728504023826,7.0898,141.05,141.01,1.41810229]
[1728504024025,7.0898,141.05,141.01,8.50950229]
[1728504024798,1.77257619,141.04,140.97,17.7332]
[1728504025000,1.77257619,141.04,140.98,1.41842835]
[1728504025912,7.0915,141.02,140.98,8.51152835]
[1728504026999,1.7730158,141.04,140.98,1.41842835]
[1728504027204,7.0917,141.01,140.97,24.8267]
[1728504027718,7.0917,141.01,140.97,26.24511706]
[1728504027898,1.7730158,141.04,140.96,0.12549]
[1728504028106,7.0927,140.99,140.95,7.21999]
[1728504028300,7.0927,140.99,140.96,23.776884]
[1728504029208,8.86668272,140.98,140.94,24.8323]
[1728504029415,1.7733981,140.97,140.92,70.0]
[1728504029605,7.0972,140.9,140.84,70.0]
[1728504029924,7.0979,140.89,140.85,17.7486]
[1728504030220,1.77451564,140.94,140.83,22.0743]
[1728504030406,7.0987,140.87,140.83,7.1007]
[1728504030602,7.0977,140.89,140.85,7.0996]
[1728504030813,7.0968,140.91,140.86,8.51840658]
[1728504031120,1.77441115,140.9,140.84,87.75]
[1728504031324,7.0977,140.89,140.84,94.8498]
[1728504031914,1.77446746,140.94,140.87,70.0]
[1728504032108,7.0964,140.92,140.87,77.0986]
[1728504032306,7.0963,140.92,140.87,77.0982]
[1728504032610,1.77418447,140.96,140.88,31.000474]
[1728504032819,7.0958,140.93,140.88,31.000474]
[1728504033018,1.77418447,140.96,140.88,23.902374]
[1728504033332,7.0964,140.92,140.88,0.12549]
[1728504034328,8.87099076,140.91,140.87,23.776884]
[1728504034521,7.0972,140.9,140.86,17.7472]
[1728504035525,7.0968,140.91,140.86,26.26581354]
[1728504035829,1.77439208,140.94,140.87,70.0]
[1728504036020,7.0962,140.92,140.88,24.8424]
[1728504037121,7.0967,140.91,140.88,17.7443]
[1728504038933,7.0958,140.93,140.89,1.41934832]
[1728504039708,7.0952,140.94,140.89,1.41934832]
[1728504039915,7.0952,140.94,140.89,8.51694832]
[1728504040331,7.0957,140.93,140.89,8.51694832]
[1728504041030,1.77418603,140.96,140.91,21.13924324]
[1728504041232,1.77363552,141.03,140.98,7.0932]
[1728504041413,1.77363552,141.03,140.96,0.25098]
[1728504041609,1.77363552,141.03,140.94,70.0]
[1728504041610,7.0932,140.98,140.94,70.0]
[1728504041825,7.0932,140.98,140.94,23.776884]
[1728504042029,1.77341627,140.97,140.93,17.7385]
[1728504042537,1.77341627,140.97,140.93,19.15739111]
[1728504043008,1.77341627,140.97,140.93,26.25299111]
[1728504043212,1.77341627,140.97,140.93,17.7385]
[1728504043803,8.86711627,140.97,140.93,17.7385]
[1728504044206,8.86711627,140.97,140.92,77.0961]
[1728504044614,7.0942,140.96,140.91,31.124364]
[1728504044831,7.0942,140.96,140.91,24.027864]
[1728504045131,1.77380971,140.95,140.88,76.4168]
[1728504045326,7.0955,140.94,140.88,83.5149]
[1728504046433,8.86983411,140.93,140.88,7.0981]
[1728504046731,7.0958,140.93,140.88,7.0981]
[1728504047509,7.0953,140.94,140.88,7.0981]
[1728504047707,1.77417696,140.97,140.9,70.0]
[1728504047913,15.1309,140.99,140.94,0.12549]
[1728504048126,16.90429966,140.99,140.94,1.54420973]
[1728504048318,16.90429966,140.99,140.94,7.22059]
[1728504048517,23.99709966,140.99,140.94,7.22059]
[1728504049130,7.0936,140.98,140.93,17.7387]
[1728504049317,1.77362061,140.97,140.93,17.7387]
[1728504049630,8.86742061,140.97,140.92,7.0957]
[1728504050346,7.0938,140.97,140.92,23.776884]
[1728504050512,7.0938,140.97,140.92,7.0961]
[1728504051033,15.1309,140.99,140.91,23.902374]
[1728504051339,7.0951,140.95,140.9,17.7423]
[1728504051536,7.0951,140.95,140.9,19.16147599]
[1728504052335,7.0951,140.95,140.9,26.25847599]
[1728504052536,7.0943,140.96,140.91,7.0966]
[1728504052754,1.7739523,140.98,140.92,1.41899642]
[1728504053039,29.1258,141.03,140.98,7.0932]
[1728504053529,29.1258,141.03,140.97,24.8271]
[1728504054134,7.0913,141.02,140.97,24.8271]
[1728504054333,1.77309028,141.01,140.97,24.8271]
[1728504055038,7.3069,141.02,140.97,24.8271]
[1728504055229,1.77304943,141.01,140.97,24.8271]
[1728504055734,1.77304943,141.01,140.96,70.0]
[1728504055936,1.77304943,141.01,140.95,23.902374]
[1728504056241,7.0925,141.0,140.95,30.996974]
[1728504056535,7.0932,140.98,140.94,17.7372]
[1728504057544,7.0928,140.99,140.94,26.25111161]
[1728504057716,1.77351254,140.98,140.94,26.25111161]
[1728504058839,8.86671254,140.98,140.94,17.7372]
[1728504059022,7.0932,140.98,140.94,17.7372]
[1728504060518,1.77351651,140.97,140.94,17.7372]
[1728504061343,7.0946,140.96,140.91,24.96299]
[1728504061553,7.0946,140.96,140.92,1.41898087]
[1728504061727,7.0946,140.96,140.92,8.51508087]
[1728504062129,7.0946,140.96,140.91,17.86639]
[1728504062321,7.0946,140.96,140.91,24.96269]
[1728504062819,7.0937,140.97,140.92,8.51478202]
[1728504063846,7.0937,140.97,140.87,26.09217962]
[1728504063847,7.0957,140.93,140.88,24.8427]
[1728504064060,1.77372238,140.96,140.85,15.05673855]
[1728504064061,7.0972,140.9,140.85,31.5062]
[1728504064915,7.0969,140.91,140.86,8.51827406]
[1728504066331,0.051,140.9,140.86,8.51827406]
[1728504066744,0.051,140.9,140.86,7.0987]
[1728504067444,1.82544055,140.9,140.86,7.0987]
[1728504069056,7.0977,140.89,140.85,17.7489]
[1728504069260,8.87296468,140.88,140.84,7.1]
[1728504069458,7.0988,140.87,140.82,38.90607964]
[1728504069664,7.0988,140.87,140.82,31.5108]
[1728504069959,7.3144,140.87,140.83,7.1007]
[1728504070831,1.77486959,140.86,140.82,31.5111]
[1728504071046,8.87426959,140.86,140.82,24.8534]
[1728504071232,8.87426959,140.86,140.82,17.7522]
[1728504071658,7.1002,140.84,140.8,7.1019]
[1728504071951,7.0998,140.85,140.8,7.1019]
[1728504072155,1.77519319,140.84,140.8,7.1019]
[1728504072344,8.87539319,140.84,140.8,7.1019]
[1728504072546,1.99083283,140.87,140.79,33.298]
[1728504072760,9.08963283,140.87,140.82,7.1011]
[1728504073264,9.08963283,140.87,140.82,8.52111035]
[1728504073442,7.0992,140.86,140.81,24.8555]
[1728504073639,8.8749137,140.85,140.81,17.7539]
[1728504074263,7.0993,140.86,140.81,24.8555]
[1728504074448,1.77520795,140.85,140.81,24.8555]
[1728504075548,8.87500795,140.85,140.81,24.8555]
[1728504075756,7.0998,140.85,140.81,24.8555]
[1728504076260,1.99083565,140.87,140.81,24.8555]
[1728504076554,7.0993,140.86,140.82,1.4200869]
[1728504076966,1.7751078,140.85,140.81,26.27558624]
[1728504077268,7.0993,140.86,140.81,26.27558624]
[1728504078549,1.9907574,140.87,140.81,1.42008624]
[1728504078753,0.2156,140.87,140.86,7.0992]
[1728504078949,7.3143,140.87,140.84,1.41976879]
[1728504079153,0.2156,140.87,140.83,7.1006]
[1728504079366,0.2156,140.87,140.84,1.41988577]
[1728504079953,0.2156,140.87,140.84,8.52008577]
[1728504080151,0.2156,140.87,140.84,1.41988577]
[1728504080349,0.2156,140.87,140.84,17.7502]
[1728504080554,0.2156,140.87,140.86,7.0992]
[1728504081136,0.2156,140.87,140.86,101.127064]
[1728504082070,0.2156,140.87,140.86,116.351464]
[1728504082365,0.2156,140.87,140.86,117.77074524]
[1728504083080,0.2156,140.87,140.86,116.351464]
[1728504083442,0.2156,140.87,140.86,117.77068044]
[1728504086052,0.2156,140.87,140.86,116.351464]
[1728504086551,0.2156,140.87,140.86,117.77063929]
[1728504086952,0.2156,140.87,140.86,116.351464]
[1728504087159,0.2156,140.87,140.86,117.77060148]
[1728504087358,0.2156,140.87,140.86,116.351464]
[1728504087564,0.2666,140.87,140.86,116.351464]
[1728504089668,0.2666,140.87,140.86,128.32084212]
[1728504090373,15.764,140.98,140.96,7.0941]
[1728504090969,15.764,140.98,140.94,1.41867633]
[1728504090970,15.764,140.98,140.95,24.831]
[1728504092068,22.8572,140.98,140.94,30.997474]
[1728504092279,7.0937,140.97,140.93,31.123464]
[1728504092577,7.0945,140.96,140.92,17.7396]
[1728504093170,1.77375515,140.97,140.93,1.41900412]
[1728504093473,7.0943,140.96,140.93,1.41900412]
[1728504093658,7.0943,140.96,140.92,24.8357]
[1728504093855,1.77370887,140.95,140.9,0.12549]
[1728504094077,7.0952,140.94,140.9,30.999374]
[1728504094453,7.0949,140.95,140.9,30.999374]
[1728504095268,7.0949,140.95,140.91,1.41910802]
[1728504096454,7.0949,140.95,140.9,30.999374]
[1728504096776,7.0949,140.95,140.91,1.41910668]
[1728504097072,21.7738766,140.97,140.91,1.41910668]
[1728504097279,7.0952,140.94,140.9,7.097]
[1728504097579,1.77393554,140.96,140.89,17.7433]
[1728504097760,1.7740877,140.95,140.89,17.7433]
[1728504097956,19.5112877,140.95,140.86,17.7477]
[1728504098151,7.0964,140.92,140.86,17.7477]
[1728504098472,7.0964,140.92,140.88,7.0981]
[1728504099563,7.0968,140.91,140.87,7.0986]
[1728504100868,6.0651,140.94,140.86,17.7477]
[1728504101071,7.0972,140.9,140.86,24.8467]
[1728504101685,7.0977,140.89,140.86,17.7477]
[1728504101981,7.0973,140.9,140.86,24.8468]
[1728504102551,7.0978,140.89,140.84,10.55027962]
[1728504102756,1.77445083,140.89,140.83,17.7511]
[1728504103183,7.0983,140.88,140.84,8.52001792]
[1728504109780,1.77477296,140.9,140.84,8.52001792]
[1728504109781,1.77477296,140.9,140.85,1.41981832]
[1728504110080,1.77477296,140.9,140.84,0.12549]
[1728504110081,7.099,140.87,140.83,31.128364]
[1728504111785,7.0983,140.88,140.84,8.51997803]
[1728504111958,1.7747449,140.9,140.83,23.902374]
[1728504112160,7.1,140.85,140.82,17.7531]
[1728504112386,7.1006,140.84,140.8,7.1022]
[1728504113873,25.80418272,140.88,140.75,31.74526073]
[1728504113874,1.7751425,140.83,140.76,70.0]
[1728504114200,7.1022,140.8,140.76,24.8639]
[1728504114563,7.103,140.79,140.75,24.08647962]
[1728504114764,1.77561529,140.83,140.75,24.08647962]
[1728504114976,7.1023,140.8,140.75,6.4316]
[1728504115183,1.77561529,140.83,140.75,24.1933]
[1728504115484,7.1033,140.78,140.75,17.7617]
[1728504116796,7.1028,140.79,140.76,1.42064934]
[1728504118064,1.77584989,140.81,140.76,1.42064934]
[1728504118263,7.1023,140.8,140.76,8.52474934]
[1728504119271,7.1023,140.8,140.76,7.1041]
[1728504119690,7.1023,140.8,140.76,8.52468139]
[1728504120583,7.1018,140.81,140.77,7.1036]
[1728504121191,7.1023,140.8,140.76,8.52458139]
[1728504121365,1.7756762,140.84,140.76,0.12549]
[1728504121366,22.3277,140.82,140.76,0.12549]
[1728504121566,7.1055,140.74,140.69,13.3247]
[1728504122386,7.1055,140.74,140.69,6.2174]
[1728504123280,7.1063,140.72,140.68,0.8344084]
[1728504123591,7.1069,140.71,140.68,0.8344084]
[1728504124793,1.7767239,140.75,140.69,1.42137466]
[1728504125001,7.1048,140.75,140.7,7.1071]
[1728504125170,7.1055,140.74,140.69,7.1077]
[1728504125374,7.1053,140.74,140.69,31.009974]
[1728504125583,17.07041244,140.76,140.71,23.776884]
[1728504125793,7.1043,140.76,140.72,1.42104298]
[1728504125986,7.1043,140.76,140.71,30.883584]
[1728504126186,7.1043,140.76,140.71,23.776884]
[1728504126385,1.77630373,140.79,140.71,23.776884]
[1728504126586,7.1055,140.74,140.71,23.776884]
[1728504126909,7.1043,140.76,140.71,30.883484]
[1728504127402,17.7586,140.78,140.71,23.776884]
[1728504127691,7.1054,140.74,140.71,23.776884]
[1728504128004,1.77625917,140.77,140.71,0.25098]
[1728504128005,7.1049,140.75,140.71,0.25098]
[1728504128373,7.1049,140.75,140.71,0.12549]
[1728504128779,7.1053,140.74,140.71,0.12549]
[1728504129095,7.1049,140.75,140.71,0.12549]
[1728504129297,1.77625917,140.77,140.72,23.776884]
[1728504129497,1.77615232,140.78,140.72,23.776884]
[1728504129996,7.1049,140.75,140.71,7.35768]
[1728504130194,7.1053,140.74,140.71,24.027864]
[1728504130397,1.77615232,140.78,140.71,24.027864]
[1728504130579,1.77615232,140.78,140.69,94.8763]
[1728504130580,7.1054,140.74,140.69,94.8763]
[1728504131912,7.1047,140.76,140.71,7.1067]
[1728504132100,7.1047,140.76,140.72,1.42102551]
[1728504132475,7.1048,140.75,140.72,1.42102551]
[1728504132700,7.1048,140.75,140.71,7.1067]
[1728504133403,7.1048,140.75,140.72,1.42101926]
[1728504134105,7.1043,140.76,140.72,1.42101926]
[1728504134582,7.1048,140.75,140.71,77.1066]
[1728504134905,7.1048,140.75,140.72,23.776884]
[1728504135121,1.77615232,140.78,140.73,1.42096318]
[1728504136183,7.1041,140.77,140.73,1.42096318]
[1728504136698,7.1048,140.75,140.72,23.776884]
[1728504138016,7.1043,140.76,140.72,30.883084]
[1728504138702,7.1043,140.76,140.72,23.776884]
[1728504139406,7.1067,140.72,140.68,0.8344084]
[1728504139593,20.0,140.75,140.68,0.8344084]
[1728504139781,1.77663239,140.74,140.68,0.8344084]
[1728504140495,7.1069,140.71,140.68,0.8344084]
[1728504141296,1.77663239,140.74,140.69,1.42132761]
[1728504141297,7.1066,140.72,140.69,1.42132761]
[1728504141685,7.1066,140.72,140.69,24.027864]
[1728504142001,7.1058,140.73,140.69,31.135564]
[1728504142606,7.1043,140.76,140.72,7.1062]
[1728504142807,7.1043,140.76,140.73,1.4209467]
[1728504143110,7.1049,140.75,140.71,94.8734]
[1728504143324,7.1049,140.75,140.72,23.776884]
[1728504145517,7.1043,140.76,140.73,1.42091665]
[1728504148510,1.77586081,140.81,140.74,95.44855265]
[1728504148738,7.1034,140.78,140.74,101.133064]
[1728504149088,1.77586081,140.81,140.74,94.027864]
[1728504149285,1.77580157,140.79,140.71,76.2374]
[1728504149490,7.1046,140.76,140.72,31.134064]
[1728504155413,7.1049,140.75,140.72,24.027864]
[1728504156905,1.77580157,140.79,140.71,6.2374]
[1728504157101,1.77580157,140.79,140.68,0.8344084]
[1728504157317,20.0,140.77,140.68,0.8344084]
[1728504157623,1.77659186,140.76,140.68,0.8344084]
[1728504157824,7.1073,140.7,140.68,0.8344084]
[1728504158323,7.1078,140.69,140.68,0.8344084]
[1728504159798,7.1074,140.7,140.68,0.8344084]
[1728504161934,7.1073,140.7,140.68,0.8344084]
[1728504162433,1.77678847,140.72,140.68,0.8344084]
[1728504162723,7.1066,140.72,140.69,1.42135298]
[1728504162925,7.1063,140.72,140.69,1.42135298]
[1728504163102,15.9097,140.73,140.69,1.42135298]
[1728504163297,7.1068,140.71,140.69,1.42135298]
[1728504164804,7.1064,140.72,140.69,1.42135298]
[1728504165107,7.1069,140.71,140.69,23.776884]
[1728504165519,7.1069,140.71,140.7,1.42129212]
[1728504166015,7.1063,140.72,140.7,1.42129212]
[1728504168822,17.7629,140.75,140.7,1.42129212]
[1728504169026,7.1061,140.73,140.7,1.42129212]
[1728504169325,7.1063,140.72,140.69,30.884584]
[1728504170320,7.1063,140.72,140.69,23.776884]
[1728504171529,7.1051,140.75,140.71,7.1065]
[1728504171739,7.1057,140.74,140.7,24.99999]
[1728504172109,7.1057,140.74,140.71,23.776884]
[1728504172932,7.1059,140.73,140.71,23.776884]
[1728504176026,7.1078,140.69,140.68,0.8344084]
[1728504176613,7.1078,140.69,140.68,24.6112924]
[1728504177543,7.1075,140.7,140.68,24.6112924]
[1728504179335,7.1075,140.7,140.69,1.42137773]
[1728504180041,7.107,140.71,140.69,1.42137773]
[1728504182124,17.7644,140.74,140.7,23.776884]
[1728504182325,7.1063,140.72,140.7,23.776884]
[1728504182526,7.1068,140.71,140.69,23.776884]
[1728504183221,7.1068,140.71,140.68,18.7304984]
[1728504184741,7.1064,140.72,140.69,95.19817706]
[1728504184926,7.1055,140.74,140.71,7.1067]
[1728504185117,7.1055,140.74,140.72,1.42105598]
[1728504185922,7.1055,140.74,140.71,23.776884]
[1728504186417,7.1055,140.74,140.72,1.42105657]
[1728504187250,36.4875,140.77,140.72,1.42105657]
[1728504187444,7.1048,140.75,140.72,0.12549]
[1728504188049,7.1053,140.74,140.71,93.776884]
[1728504191145,7.1061,140.73,140.71,93.776884]
[1728504191346,7.1061,140.73,140.71,23.776884]
[1728504191542,7.1067,140.72,140.7,5.31387113]
[1728504191747,7.1068,140.71,140.69,23.902374]
[1728504192525,7.1064,140.72,140.69,23.902374]
[1728504193150,7.1071,140.71,140.68,0.8344084]
[1728504193332,17.7639,140.74,140.68,0.8344084]
[1728504193541,8.23933109,140.75,140.68,0.8344084]
[1728504193542,7.1078,140.69,140.68,0.8344084]
[1728504199025,15.2036,140.71,140.68,0.8344084]
[1728504199231,22.3104,140.71,140.68,0.8344084]
[1728504199654,15.2036,140.71,140.68,0.8344084]
[1728504199839,7.1073,140.7,140.68,0.8344084]
[1728504200160,1.77683383,140.74,140.69,6.15989]
[1728504200344,16.1685,140.78,140.72,23.902374]
[1728504201123,16.1685,140.78,140.73,1.42092131]
[1728504201426,7.1043,140.76,140.72,48.774174]
[1728504201937,7.1043,140.76,140.73,1.4209214]
[1728504202439,7.1043,140.76,140.72,48.774174]
[1728504203358,16.1685,140.78,140.69,76.15989]
[1728504203663,20.0,140.77,140.68,0.8344084]
[1728504203839,1.77653345,140.76,140.68,0.8344084]
[1728504204740,7.1066,140.72,140.68,7.9426084]
[1728504205135,7.1059,140.73,140.69,32.30582872]
[1728504206050,1.77648134,140.72,140.68,0.8344084]
[1728504206228,7.1072,140.71,140.68,0.8344084]
[1728504206842,1.77648134,140.72,140.68,0.8344084]
[1728504207158,7.1074,140.7,140.68,0.8344084]
[1728504207336,7.1078,140.69,140.68,0.8344084]
[1728504210629,7.1071,140.71,140.68,0.8344084]
[1728504213645,7.1071,140.71,140.68,2.25581196]
[1728504214160,7.1071,140.71,140.68,0.8344084]
[1728504214452,7.1074,140.7,140.68,0.8344084]
[1728504219343,1.77688005,140.75,140.68,18.6052084]
[1728504219558,7.1059,140.73,140.69,32.30582394]
[1728504219767,18.23524959,140.76,140.71,23.776884]
[1728504220059,7.1048,140.75,140.72,1.42101134]
[1728504221045,7.1048,140.75,140.71,30.883284]
[1728504221751,7.1053,140.74,140.71,30.883284]
[1728504221957,7.1063,140.72,140.69,23.776884]
[1728504222341,7.1063,140.72,140.69,25.19812976]
[1728504222659,7.1063,140.72,140.69,23.776884]
[1728504224865,7.1063,140.72,140.7,1.42124718]
[1728504225962,7.1063,140.72,140.69,23.776884]
[1728504226755,1.77655721,140.76,140.69,23.776884]
[1728504226954,7.1053,140.74,140.7,7.35798]
[1728504227158,7.1053,140.74,140.71,7.1067]
[1728504230348,7.1053,140.74,140.7,0.25098]
[1728504230555,7.1053,140.74,140.71,23.776884]
[1728504232272,7.1061,140.73,140.69,24.8768]
[1728504232665,7.1061,140.73,140.7,1.4211968]
[1728504235078,7.1055,140.74,140.71,23.776884]
[1728504235250,21.77649638,140.76,140.72,1.4210148]
[1728504235251,7.1049,140.75,140.72,1.4210148]
[1728504235451,7.1049,140.75,140.71,30.883684]
[1728504236171,1.77624908,140.76,140.71,30.883684]
[1728504236385,7.1053,140.74,140.72,1.4210055]
[1728504236679,7.1044,140.76,140.73,7.1057]
[1728504236847,7.1044,140.76,140.74,1.42088255]
[1728504237047,7.1044,140.76,140.73,7.1057]
[1728504237255,21.77627401,140.78,140.73,7.1057]
[1728504237484,7.1038,140.77,140.73,7.1057]
[1728504238383,7.1044,140.76,140.73,7.1057]
[1728504241554,7.11596828,140.8,140.76,23.776884]
[1728504241750,7.11596828,140.8,140.77,8.52401645]
[1728504241993,34.96372793,140.86,140.78,23.776884]
[1728504242164,34.96372793,140.86,140.79,8.52292608]
[1728504242488,7.1004,140.84,140.8,7.1022]
[1728504242783,34.96372793,140.86,140.8,7.1022]
[1728504242784,7.1007,140.83,140.8,23.776884]
[1728504243878,1.77519621,140.82,140.78,23.776884]
[1728504244085,7.1022,140.8,140.77,23.776884]
[1728504245373,7.1022,140.8,140.78,1.42040388]
[1728504245686,7.1011,140.83,140.79,30.879484]
[1728504245995,7.1012,140.82,140.79,23.776884]
[1728504246575,21.77529661,140.85,140.8,1.42023729]
[1728504246765,7.1008,140.83,140.8,1.42023729]
[1728504247274,7.0999,140.85,140.8,39.87289103]
[1728504247464,7.0993,140.86,140.82,7.1009]
[1728504247662,7.0993,140.86,140.83,1.41989777]
[1728504248271,7.1001,140.85,140.81,93.902374]
[1728504249175,7.1001,140.85,140.81,101.003674]
[1728504249769,21.77487103,140.89,140.82,1.41993271]
[1728504249996,7.0994,140.86,140.82,8.52103271]
[1728504250293,7.0994,140.86,140.82,7.22669]
[1728504250982,7.0994,140.86,140.83,25.32223961]
[1728504251192,7.0988,140.87,140.83,102.42263961]
[1728504251372,35.36959466,140.9,140.83,95.32223961]
[1728504251599,7.0922,141.0,140.95,7.0946]
[1728504251807,7.0917,141.01,140.96,25.19542424]
[1728504252097,20.4516611,141.03,140.98,23.776884]
[1728504252272,2.0,141.16,140.95,13.59495374]
[1728504252273,7.0877,141.09,141.03,7.0906]
[1728504252474,7.0877,141.09,141.04,8.50791832]
[1728504252676,0.58245488,141.08,141.04,8.50791832]
[1728504253187,0.58245488,141.09,141.04,8.50791832]
[1728504253371,7.0891,141.07,141.02,0.12549]
[1728504253574,0.58245488,141.06,141.0,23.776884]
[1728504253795,7.0902,141.04,140.99,23.902374]
[1728504254172,20.58245488,141.08,140.99,23.902374]
[1728504254482,7.0907,141.03,140.99,23.902374]
[1728504255074,7.0919,141.01,140.99,23.776884]
[1728504255278,7.093,140.99,140.95,6.112]
[1728504255481,7.0938,140.97,140.95,6.112]
[1728504255786,7.0932,140.98,140.95,6.112]
[1728504255978,7.0932,140.98,140.95,7.53063754]
[1728504257872,7.0932,140.98,140.95,1.41863754]
[1728504258072,0.58245488,141.01,140.94,70.0]
[1728504258293,7.0947,140.95,140.94,93.902374]
[1728504258488,7.0942,140.96,140.94,93.776884]
[1728504258672,7.0942,140.96,140.95,1.4187395]
[1728504259181,7.0947,140.95,140.94,93.776884]
[1728504259381,7.0947,140.95,140.94,93.902374]
[1728504259900,7.0947,140.95,140.93,23.776884]
[1728504261892,7.0952,140.94,140.93,23.776884]
[1728504262092,7.0959,140.93,140.91,6.3546]
[1728504262604,7.0959,140.93,140.91,7.77361715]